{"text_format":"1","workbook":"xlsx","n_sheets":6,"sheets":["Start","Getroffen maatregelen","Geïdentificeerde maatregelen","CSV-bestanden aanmaken","Lijsten","DB_Tijdelijk"],"not_rendered":{"charts":0,"images":5,"macros":1,"external_links":0,"defined_names":20,"comments":0,"pivot_tables":0},"unopened":[],"bounds":{"document_bytes":16777216,"sheet_cells":100000,"rows_first":2000,"rows_last":500,"rows_between":2000,"halvings":0,"cell_chars":16384,"cell_head_chars":4096},"cells_cut":0,"cells_raw":0,"read":"whole","date_system":"1900"}

{"sheet":"Start","index":0,"n_rows":16,"n_cols":3,"rows_kept":16,"cut":false,"hidden":false,"merged":[[5,2,5,5],[11,2,11,5],[7,2,7,5],[15,2,15,5]]}
[]
[]
[]
[]
[]
[null,null,"Hulpbestand CSV-upload Onderzoeksplicht"]
[]
[null,null,{"$f":"\"Versie \" & LIJSTEN_VERSIE","v":"Versie 1.0.1"}]
[]
[null,null,"Welkom!"]
[]
[null,null,"Met dit Excel-hulpbestand kunt u CSV-gegevensbestanden aanmaken waarin de energiebesparingsmaatregelen staan. De aangemaakte CSV-gegevensbestanden kunt u vervolgens indienen in het eLoket om aan uw Onderzoeksplicht Energiebesparing te voldoen.  \n\nKlik op de 'i' rechtsboven voor aanvullende informatie, invultips en release notes. Hier vindt u ook de handleiding."]
[]
[null,null,"Beknopte instructies"]
[]
[null,null,"Vul de werkbladen 'Getroffen maatregelen' en 'Geïdentificeerde maatregelen' in en ga vervolgens naar het werkblad 'CSV-bestanden aanmaken'."]

{"sheet":"Getroffen maatregelen","index":1,"n_rows":26,"n_cols":14,"rows_kept":26,"cut":false,"hidden":false,"merged":[[3,6,3,10]]}
[]
[null,"Getroffen maatregelen"]
[]
[null,null,null,null,null,null,"Gerealiseerde finale energiebesparing per jaar"]
[null,"Omschrijving maatregel (kort)","Categorie maatregel","Jaar van uitvoering","Moment van uitvoeren","Investering  [€]","Elektriciteit [kWh/jaar]","Aardgas [Nm³/jaar]","Warmte [GJ/jaar]","Brandstof [liter/jaar]","Overige [GJ/jaar]","CO2-reductie [ton/jaar]","TVT [jaar]","Validatie_totaal"]
[null,"Omschrijving maatregel (kort)","Categorie","Jaar van uitvoering","Moment van uitvoeren","Investering\n[€]","Elektriciteit [kWh]","Aardgas   [Nm³]","Warmte \n[GJ]","Brandstof [liter]","Overige \n[GJ]","CO2-reductie [ton]","TVT \n[Jaar]","Volledig?"]
[null,null,null,null,null,null,null,null,null,null,null,null,null,{"$f":"IF(COUNTA(tbl_MAATREGELEN_GETROFFEN[[#This Row],[Omschrijving maatregel (kort)]:[TVT \n'[Jaar']]])=0,\"\",IF(COUNTA(tbl_MAATREGELEN_GETROFFEN[[#This Row],[Omschrijving maatregel (kort)]:[Investering\n'[€']]],tbl_MAATREGELEN_GETROFFEN[[#This Row],[CO2-reductie '[ton']]])<>6,0,IF(COUNTA(tbl_MAATREGELEN_GETROFFEN[[#This Row],[Elektriciteit '[kWh']]:[Overige \n'[GJ']]])=0,0,1)))","v":""}]
[null,null,null,null,null,null,null,null,null,null,null,null,null,{"$f":"IF(COUNTA(tbl_MAATREGELEN_GETROFFEN[[#This Row],[Omschrijving maatregel (kort)]:[TVT \n'[Jaar']]])=0,\"\",IF(COUNTA(tbl_MAATREGELEN_GETROFFEN[[#This Row],[Omschrijving maatregel (kort)]:[Investering\n'[€']]],tbl_MAATREGELEN_GETROFFEN[[#This Row],[CO2-reductie '[ton']]])<>6,0,IF(COUNTA(tbl_MAATREGELEN_GETROFFEN[[#This Row],[Elektriciteit '[kWh']]:[Overige \n'[GJ']]])=0,0,1)))","v":""}]
[null,null,null,null,null,null,null,null,null,null,null,null,null,{"$f":"IF(COUNTA(tbl_MAATREGELEN_GETROFFEN[[#This Row],[Omschrijving maatregel (kort)]:[TVT \n'[Jaar']]])=0,\"\",IF(COUNTA(tbl_MAATREGELEN_GETROFFEN[[#This Row],[Omschrijving maatregel (kort)]:[Investering\n'[€']]],tbl_MAATREGELEN_GETROFFEN[[#This Row],[CO2-reductie '[ton']]])<>6,0,IF(COUNTA(tbl_MAATREGELEN_GETROFFEN[[#This Row],[Elektriciteit '[kWh']]:[Overige \n'[GJ']]])=0,0,1)))","v":""}]
[null,null,null,null,null,null,null,null,null,null,null,null,null,{"$f":"IF(COUNTA(tbl_MAATREGELEN_GETROFFEN[[#This Row],[Omschrijving maatregel (kort)]:[TVT \n'[Jaar']]])=0,\"\",IF(COUNTA(tbl_MAATREGELEN_GETROFFEN[[#This Row],[Omschrijving maatregel (kort)]:[Investering\n'[€']]],tbl_MAATREGELEN_GETROFFEN[[#This Row],[CO2-reductie '[ton']]])<>6,0,IF(COUNTA(tbl_MAATREGELEN_GETROFFEN[[#This Row],[Elektriciteit '[kWh']]:[Overige \n'[GJ']]])=0,0,1)))","v":""}]
[null,null,null,null,null,null,null,null,null,null,null,null,null,{"$f":"IF(COUNTA(tbl_MAATREGELEN_GETROFFEN[[#This Row],[Omschrijving maatregel (kort)]:[TVT \n'[Jaar']]])=0,\"\",IF(COUNTA(tbl_MAATREGELEN_GETROFFEN[[#This Row],[Omschrijving maatregel (kort)]:[Investering\n'[€']]],tbl_MAATREGELEN_GETROFFEN[[#This Row],[CO2-reductie '[ton']]])<>6,0,IF(COUNTA(tbl_MAATREGELEN_GETROFFEN[[#This Row],[Elektriciteit '[kWh']]:[Overige \n'[GJ']]])=0,0,1)))","v":""}]
[null,null,null,null,null,null,null,null,null,null,null,null,null,{"$f":"IF(COUNTA(tbl_MAATREGELEN_GETROFFEN[[#This Row],[Omschrijving maatregel (kort)]:[TVT \n'[Jaar']]])=0,\"\",IF(COUNTA(tbl_MAATREGELEN_GETROFFEN[[#This Row],[Omschrijving maatregel (kort)]:[Investering\n'[€']]],tbl_MAATREGELEN_GETROFFEN[[#This Row],[CO2-reductie '[ton']]])<>6,0,IF(COUNTA(tbl_MAATREGELEN_GETROFFEN[[#This Row],[Elektriciteit '[kWh']]:[Overige \n'[GJ']]])=0,0,1)))","v":""}]
[null,null,null,null,null,null,null,null,null,null,null,null,null,{"$f":"IF(COUNTA(tbl_MAATREGELEN_GETROFFEN[[#This Row],[Omschrijving maatregel (kort)]:[TVT \n'[Jaar']]])=0,\"\",IF(COUNTA(tbl_MAATREGELEN_GETROFFEN[[#This Row],[Omschrijving maatregel (kort)]:[Investering\n'[€']]],tbl_MAATREGELEN_GETROFFEN[[#This Row],[CO2-reductie '[ton']]])<>6,0,IF(COUNTA(tbl_MAATREGELEN_GETROFFEN[[#This Row],[Elektriciteit '[kWh']]:[Overige \n'[GJ']]])=0,0,1)))","v":""}]
[null,null,null,null,null,null,null,null,null,null,null,null,null,{"$f":"IF(COUNTA(tbl_MAATREGELEN_GETROFFEN[[#This Row],[Omschrijving maatregel (kort)]:[TVT \n'[Jaar']]])=0,\"\",IF(COUNTA(tbl_MAATREGELEN_GETROFFEN[[#This Row],[Omschrijving maatregel (kort)]:[Investering\n'[€']]],tbl_MAATREGELEN_GETROFFEN[[#This Row],[CO2-reductie '[ton']]])<>6,0,IF(COUNTA(tbl_MAATREGELEN_GETROFFEN[[#This Row],[Elektriciteit '[kWh']]:[Overige \n'[GJ']]])=0,0,1)))","v":""}]
[null,null,null,null,null,null,null,null,null,null,null,null,null,{"$f":"IF(COUNTA(tbl_MAATREGELEN_GETROFFEN[[#This Row],[Omschrijving maatregel (kort)]:[TVT \n'[Jaar']]])=0,\"\",IF(COUNTA(tbl_MAATREGELEN_GETROFFEN[[#This Row],[Omschrijving maatregel (kort)]:[Investering\n'[€']]],tbl_MAATREGELEN_GETROFFEN[[#This Row],[CO2-reductie '[ton']]])<>6,0,IF(COUNTA(tbl_MAATREGELEN_GETROFFEN[[#This Row],[Elektriciteit '[kWh']]:[Overige \n'[GJ']]])=0,0,1)))","v":""}]
[null,null,null,null,null,null,null,null,null,null,null,null,null,{"$f":"IF(COUNTA(tbl_MAATREGELEN_GETROFFEN[[#This Row],[Omschrijving maatregel (kort)]:[TVT \n'[Jaar']]])=0,\"\",IF(COUNTA(tbl_MAATREGELEN_GETROFFEN[[#This Row],[Omschrijving maatregel (kort)]:[Investering\n'[€']]],tbl_MAATREGELEN_GETROFFEN[[#This Row],[CO2-reductie '[ton']]])<>6,0,IF(COUNTA(tbl_MAATREGELEN_GETROFFEN[[#This Row],[Elektriciteit '[kWh']]:[Overige \n'[GJ']]])=0,0,1)))","v":""}]
[null,null,null,null,null,null,null,null,null,null,null,null,null,{"$f":"IF(COUNTA(tbl_MAATREGELEN_GETROFFEN[[#This Row],[Omschrijving maatregel (kort)]:[TVT \n'[Jaar']]])=0,\"\",IF(COUNTA(tbl_MAATREGELEN_GETROFFEN[[#This Row],[Omschrijving maatregel (kort)]:[Investering\n'[€']]],tbl_MAATREGELEN_GETROFFEN[[#This Row],[CO2-reductie '[ton']]])<>6,0,IF(COUNTA(tbl_MAATREGELEN_GETROFFEN[[#This Row],[Elektriciteit '[kWh']]:[Overige \n'[GJ']]])=0,0,1)))","v":""}]
[null,null,null,null,null,null,null,null,null,null,null,null,null,{"$f":"IF(COUNTA(tbl_MAATREGELEN_GETROFFEN[[#This Row],[Omschrijving maatregel (kort)]:[TVT \n'[Jaar']]])=0,\"\",IF(COUNTA(tbl_MAATREGELEN_GETROFFEN[[#This Row],[Omschrijving maatregel (kort)]:[Investering\n'[€']]],tbl_MAATREGELEN_GETROFFEN[[#This Row],[CO2-reductie '[ton']]])<>6,0,IF(COUNTA(tbl_MAATREGELEN_GETROFFEN[[#This Row],[Elektriciteit '[kWh']]:[Overige \n'[GJ']]])=0,0,1)))","v":""}]
[null,null,null,null,null,null,null,null,null,null,null,null,null,{"$f":"IF(COUNTA(tbl_MAATREGELEN_GETROFFEN[[#This Row],[Omschrijving maatregel (kort)]:[TVT \n'[Jaar']]])=0,\"\",IF(COUNTA(tbl_MAATREGELEN_GETROFFEN[[#This Row],[Omschrijving maatregel (kort)]:[Investering\n'[€']]],tbl_MAATREGELEN_GETROFFEN[[#This Row],[CO2-reductie '[ton']]])<>6,0,IF(COUNTA(tbl_MAATREGELEN_GETROFFEN[[#This Row],[Elektriciteit '[kWh']]:[Overige \n'[GJ']]])=0,0,1)))","v":""}]
[null,null,null,null,null,null,null,null,null,null,null,null,null,{"$f":"IF(COUNTA(tbl_MAATREGELEN_GETROFFEN[[#This Row],[Omschrijving maatregel (kort)]:[TVT \n'[Jaar']]])=0,\"\",IF(COUNTA(tbl_MAATREGELEN_GETROFFEN[[#This Row],[Omschrijving maatregel (kort)]:[Investering\n'[€']]],tbl_MAATREGELEN_GETROFFEN[[#This Row],[CO2-reductie '[ton']]])<>6,0,IF(COUNTA(tbl_MAATREGELEN_GETROFFEN[[#This Row],[Elektriciteit '[kWh']]:[Overige \n'[GJ']]])=0,0,1)))","v":""}]
[null,null,null,null,null,null,null,null,null,null,null,null,null,{"$f":"IF(COUNTA(tbl_MAATREGELEN_GETROFFEN[[#This Row],[Omschrijving maatregel (kort)]:[TVT \n'[Jaar']]])=0,\"\",IF(COUNTA(tbl_MAATREGELEN_GETROFFEN[[#This Row],[Omschrijving maatregel (kort)]:[Investering\n'[€']]],tbl_MAATREGELEN_GETROFFEN[[#This Row],[CO2-reductie '[ton']]])<>6,0,IF(COUNTA(tbl_MAATREGELEN_GETROFFEN[[#This Row],[Elektriciteit '[kWh']]:[Overige \n'[GJ']]])=0,0,1)))","v":""}]
[null,null,null,null,null,null,null,null,null,null,null,null,null,{"$f":"IF(COUNTA(tbl_MAATREGELEN_GETROFFEN[[#This Row],[Omschrijving maatregel (kort)]:[TVT \n'[Jaar']]])=0,\"\",IF(COUNTA(tbl_MAATREGELEN_GETROFFEN[[#This Row],[Omschrijving maatregel (kort)]:[Investering\n'[€']]],tbl_MAATREGELEN_GETROFFEN[[#This Row],[CO2-reductie '[ton']]])<>6,0,IF(COUNTA(tbl_MAATREGELEN_GETROFFEN[[#This Row],[Elektriciteit '[kWh']]:[Overige \n'[GJ']]])=0,0,1)))","v":""}]
[null,null,null,null,null,null,null,null,null,null,null,null,null,{"$f":"IF(COUNTA(tbl_MAATREGELEN_GETROFFEN[[#This Row],[Omschrijving maatregel (kort)]:[TVT \n'[Jaar']]])=0,\"\",IF(COUNTA(tbl_MAATREGELEN_GETROFFEN[[#This Row],[Omschrijving maatregel (kort)]:[Investering\n'[€']]],tbl_MAATREGELEN_GETROFFEN[[#This Row],[CO2-reductie '[ton']]])<>6,0,IF(COUNTA(tbl_MAATREGELEN_GETROFFEN[[#This Row],[Elektriciteit '[kWh']]:[Overige \n'[GJ']]])=0,0,1)))","v":""}]
[null,null,null,null,null,null,null,null,null,null,null,null,null,{"$f":"IF(COUNTA(tbl_MAATREGELEN_GETROFFEN[[#This Row],[Omschrijving maatregel (kort)]:[TVT \n'[Jaar']]])=0,\"\",IF(COUNTA(tbl_MAATREGELEN_GETROFFEN[[#This Row],[Omschrijving maatregel (kort)]:[Investering\n'[€']]],tbl_MAATREGELEN_GETROFFEN[[#This Row],[CO2-reductie '[ton']]])<>6,0,IF(COUNTA(tbl_MAATREGELEN_GETROFFEN[[#This Row],[Elektriciteit '[kWh']]:[Overige \n'[GJ']]])=0,0,1)))","v":""}]
[null,null,null,null,null,null,null,null,null,null,null,null,null,{"$f":"IF(COUNTA(tbl_MAATREGELEN_GETROFFEN[[#This Row],[Omschrijving maatregel (kort)]:[TVT \n'[Jaar']]])=0,\"\",IF(COUNTA(tbl_MAATREGELEN_GETROFFEN[[#This Row],[Omschrijving maatregel (kort)]:[Investering\n'[€']]],tbl_MAATREGELEN_GETROFFEN[[#This Row],[CO2-reductie '[ton']]])<>6,0,IF(COUNTA(tbl_MAATREGELEN_GETROFFEN[[#This Row],[Elektriciteit '[kWh']]:[Overige \n'[GJ']]])=0,0,1)))","v":""}]
[null,null,null,null,null,null,null,null,null,null,null,null,null,{"$f":"IF(COUNTA(tbl_MAATREGELEN_GETROFFEN[[#This Row],[Omschrijving maatregel (kort)]:[TVT \n'[Jaar']]])=0,\"\",IF(COUNTA(tbl_MAATREGELEN_GETROFFEN[[#This Row],[Omschrijving maatregel (kort)]:[Investering\n'[€']]],tbl_MAATREGELEN_GETROFFEN[[#This Row],[CO2-reductie '[ton']]])<>6,0,IF(COUNTA(tbl_MAATREGELEN_GETROFFEN[[#This Row],[Elektriciteit '[kWh']]:[Overige \n'[GJ']]])=0,0,1)))","v":""}]

{"sheet":"Geïdentificeerde maatregelen","index":2,"n_rows":36,"n_cols":14,"rows_kept":36,"cut":false,"hidden":false,"merged":[[3,4,3,8]]}
[]
[null,"Geïdentificeerde maatregelen"]
[]
[null,null,null,null,"Besparingspotentieel per jaar"]
[null,"Omschrijving maatregel (kort)","Categorie maatregel","Investering  [€]","Elektriciteit [kWh/jaar]","Aardgas [Nm³/jaar]","Warmte [GJ/jaar]","Brandstof [liter/jaar]","Overige [GJ/jaar]","CO2-reductie [ton/jaar]","TVT [jaar]","Omschrijving eventuele voorwaardelijke belemmering","Beoogd jaar van uitvoering","Validatie_totaal"]
[null,"Omschrijving maatregel (kort)","Categorie","Investering \n[€]","Elektriciteit [kWh]","Aardgas   [Nm³]","Warmte \n[GJ]","Brandstof [liter]","Overige \n[GJ]","CO2-reductie [ton]","TVT \n[Jaar]","Omschrijving eventuele belemmering","Beoogd jaar van uitvoering","Volledig?"]
[null,null,null,null,null,null,null,null,null,null,null,null,null,{"$f":"IF(COUNTA(tbl_MAATREGELEN_GEIDENTIFICEERD[[#This Row],[Omschrijving maatregel (kort)]:[Beoogd jaar van uitvoering]])=0,\"\",IF(COUNTA(tbl_MAATREGELEN_GEIDENTIFICEERD[[#This Row],[Omschrijving maatregel (kort)]:[Investering \n'[€']]],tbl_MAATREGELEN_GEIDENTIFICEERD[[#This Row],[CO2-reductie '[ton']]:[TVT \n'[Jaar']]])<>5,0,IF(COUNTA(tbl_MAATREGELEN_GEIDENTIFICEERD[[#This Row],[Elektriciteit '[kWh']]:[Overige \n'[GJ']]])=0,0,IF(AND(tbl_MAATREGELEN_GEIDENTIFICEERD[[#This Row],[TVT \n'[Jaar']]]<=5,COUNTA(tbl_MAATREGELEN_GEIDENTIFICEERD[[#This Row],[Omschrijving eventuele belemmering]:[Beoogd jaar van uitvoering]])<2),0,1))))","v":""}]
[null,null,null,null,null,null,null,null,null,null,null,null,null,{"$f":"IF(COUNTA(tbl_MAATREGELEN_GEIDENTIFICEERD[[#This Row],[Omschrijving maatregel (kort)]:[Beoogd jaar van uitvoering]])=0,\"\",IF(COUNTA(tbl_MAATREGELEN_GEIDENTIFICEERD[[#This Row],[Omschrijving maatregel (kort)]:[Investering \n'[€']]],tbl_MAATREGELEN_GEIDENTIFICEERD[[#This Row],[CO2-reductie '[ton']]:[TVT \n'[Jaar']]])<>5,0,IF(COUNTA(tbl_MAATREGELEN_GEIDENTIFICEERD[[#This Row],[Elektriciteit '[kWh']]:[Overige \n'[GJ']]])=0,0,IF(AND(tbl_MAATREGELEN_GEIDENTIFICEERD[[#This Row],[TVT \n'[Jaar']]]<=5,COUNTA(tbl_MAATREGELEN_GEIDENTIFICEERD[[#This Row],[Omschrijving eventuele belemmering]:[Beoogd jaar van uitvoering]])<2),0,1))))","v":""}]
[null,null,null,null,null,null,null,null,null,null,null,null,null,{"$f":"IF(COUNTA(tbl_MAATREGELEN_GEIDENTIFICEERD[[#This Row],[Omschrijving maatregel (kort)]:[Beoogd jaar van uitvoering]])=0,\"\",IF(COUNTA(tbl_MAATREGELEN_GEIDENTIFICEERD[[#This Row],[Omschrijving maatregel (kort)]:[Investering \n'[€']]],tbl_MAATREGELEN_GEIDENTIFICEERD[[#This Row],[CO2-reductie '[ton']]:[TVT \n'[Jaar']]])<>5,0,IF(COUNTA(tbl_MAATREGELEN_GEIDENTIFICEERD[[#This Row],[Elektriciteit '[kWh']]:[Overige \n'[GJ']]])=0,0,IF(AND(tbl_MAATREGELEN_GEIDENTIFICEERD[[#This Row],[TVT \n'[Jaar']]]<=5,COUNTA(tbl_MAATREGELEN_GEIDENTIFICEERD[[#This Row],[Omschrijving eventuele belemmering]:[Beoogd jaar van uitvoering]])<2),0,1))))","v":""}]
[null,null,null,null,null,null,null,null,null,null,null,null,null,{"$f":"IF(COUNTA(tbl_MAATREGELEN_GEIDENTIFICEERD[[#This Row],[Omschrijving maatregel (kort)]:[Beoogd jaar van uitvoering]])=0,\"\",IF(COUNTA(tbl_MAATREGELEN_GEIDENTIFICEERD[[#This Row],[Omschrijving maatregel (kort)]:[Investering \n'[€']]],tbl_MAATREGELEN_GEIDENTIFICEERD[[#This Row],[CO2-reductie '[ton']]:[TVT \n'[Jaar']]])<>5,0,IF(COUNTA(tbl_MAATREGELEN_GEIDENTIFICEERD[[#This Row],[Elektriciteit '[kWh']]:[Overige \n'[GJ']]])=0,0,IF(AND(tbl_MAATREGELEN_GEIDENTIFICEERD[[#This Row],[TVT \n'[Jaar']]]<=5,COUNTA(tbl_MAATREGELEN_GEIDENTIFICEERD[[#This Row],[Omschrijving eventuele belemmering]:[Beoogd jaar van uitvoering]])<2),0,1))))","v":""}]
[null,null,null,null,null,null,null,null,null,null,null,null,null,{"$f":"IF(COUNTA(tbl_MAATREGELEN_GEIDENTIFICEERD[[#This Row],[Omschrijving maatregel (kort)]:[Beoogd jaar van uitvoering]])=0,\"\",IF(COUNTA(tbl_MAATREGELEN_GEIDENTIFICEERD[[#This Row],[Omschrijving maatregel (kort)]:[Investering \n'[€']]],tbl_MAATREGELEN_GEIDENTIFICEERD[[#This Row],[CO2-reductie '[ton']]:[TVT \n'[Jaar']]])<>5,0,IF(COUNTA(tbl_MAATREGELEN_GEIDENTIFICEERD[[#This Row],[Elektriciteit '[kWh']]:[Overige \n'[GJ']]])=0,0,IF(AND(tbl_MAATREGELEN_GEIDENTIFICEERD[[#This Row],[TVT \n'[Jaar']]]<=5,COUNTA(tbl_MAATREGELEN_GEIDENTIFICEERD[[#This Row],[Omschrijving eventuele belemmering]:[Beoogd jaar van uitvoering]])<2),0,1))))","v":""}]
[null,null,null,null,null,null,null,null,null,null,null,null,null,{"$f":"IF(COUNTA(tbl_MAATREGELEN_GEIDENTIFICEERD[[#This Row],[Omschrijving maatregel (kort)]:[Beoogd jaar van uitvoering]])=0,\"\",IF(COUNTA(tbl_MAATREGELEN_GEIDENTIFICEERD[[#This Row],[Omschrijving maatregel (kort)]:[Investering \n'[€']]],tbl_MAATREGELEN_GEIDENTIFICEERD[[#This Row],[CO2-reductie '[ton']]:[TVT \n'[Jaar']]])<>5,0,IF(COUNTA(tbl_MAATREGELEN_GEIDENTIFICEERD[[#This Row],[Elektriciteit '[kWh']]:[Overige \n'[GJ']]])=0,0,IF(AND(tbl_MAATREGELEN_GEIDENTIFICEERD[[#This Row],[TVT \n'[Jaar']]]<=5,COUNTA(tbl_MAATREGELEN_GEIDENTIFICEERD[[#This Row],[Omschrijving eventuele belemmering]:[Beoogd jaar van uitvoering]])<2),0,1))))","v":""}]
[null,null,null,null,null,null,null,null,null,null,null,null,null,{"$f":"IF(COUNTA(tbl_MAATREGELEN_GEIDENTIFICEERD[[#This Row],[Omschrijving maatregel (kort)]:[Beoogd jaar van uitvoering]])=0,\"\",IF(COUNTA(tbl_MAATREGELEN_GEIDENTIFICEERD[[#This Row],[Omschrijving maatregel (kort)]:[Investering \n'[€']]],tbl_MAATREGELEN_GEIDENTIFICEERD[[#This Row],[CO2-reductie '[ton']]:[TVT \n'[Jaar']]])<>5,0,IF(COUNTA(tbl_MAATREGELEN_GEIDENTIFICEERD[[#This Row],[Elektriciteit '[kWh']]:[Overige \n'[GJ']]])=0,0,IF(AND(tbl_MAATREGELEN_GEIDENTIFICEERD[[#This Row],[TVT \n'[Jaar']]]<=5,COUNTA(tbl_MAATREGELEN_GEIDENTIFICEERD[[#This Row],[Omschrijving eventuele belemmering]:[Beoogd jaar van uitvoering]])<2),0,1))))","v":""}]
[null,null,null,null,null,null,null,null,null,null,null,null,null,{"$f":"IF(COUNTA(tbl_MAATREGELEN_GEIDENTIFICEERD[[#This Row],[Omschrijving maatregel (kort)]:[Beoogd jaar van uitvoering]])=0,\"\",IF(COUNTA(tbl_MAATREGELEN_GEIDENTIFICEERD[[#This Row],[Omschrijving maatregel (kort)]:[Investering \n'[€']]],tbl_MAATREGELEN_GEIDENTIFICEERD[[#This Row],[CO2-reductie '[ton']]:[TVT \n'[Jaar']]])<>5,0,IF(COUNTA(tbl_MAATREGELEN_GEIDENTIFICEERD[[#This Row],[Elektriciteit '[kWh']]:[Overige \n'[GJ']]])=0,0,IF(AND(tbl_MAATREGELEN_GEIDENTIFICEERD[[#This Row],[TVT \n'[Jaar']]]<=5,COUNTA(tbl_MAATREGELEN_GEIDENTIFICEERD[[#This Row],[Omschrijving eventuele belemmering]:[Beoogd jaar van uitvoering]])<2),0,1))))","v":""}]
[null,null,null,null,null,null,null,null,null,null,null,null,null,{"$f":"IF(COUNTA(tbl_MAATREGELEN_GEIDENTIFICEERD[[#This Row],[Omschrijving maatregel (kort)]:[Beoogd jaar van uitvoering]])=0,\"\",IF(COUNTA(tbl_MAATREGELEN_GEIDENTIFICEERD[[#This Row],[Omschrijving maatregel (kort)]:[Investering \n'[€']]],tbl_MAATREGELEN_GEIDENTIFICEERD[[#This Row],[CO2-reductie '[ton']]:[TVT \n'[Jaar']]])<>5,0,IF(COUNTA(tbl_MAATREGELEN_GEIDENTIFICEERD[[#This Row],[Elektriciteit '[kWh']]:[Overige \n'[GJ']]])=0,0,IF(AND(tbl_MAATREGELEN_GEIDENTIFICEERD[[#This Row],[TVT \n'[Jaar']]]<=5,COUNTA(tbl_MAATREGELEN_GEIDENTIFICEERD[[#This Row],[Omschrijving eventuele belemmering]:[Beoogd jaar van uitvoering]])<2),0,1))))","v":""}]
[null,null,null,null,null,null,null,null,null,null,null,null,null,{"$f":"IF(COUNTA(tbl_MAATREGELEN_GEIDENTIFICEERD[[#This Row],[Omschrijving maatregel (kort)]:[Beoogd jaar van uitvoering]])=0,\"\",IF(COUNTA(tbl_MAATREGELEN_GEIDENTIFICEERD[[#This Row],[Omschrijving maatregel (kort)]:[Investering \n'[€']]],tbl_MAATREGELEN_GEIDENTIFICEERD[[#This Row],[CO2-reductie '[ton']]:[TVT \n'[Jaar']]])<>5,0,IF(COUNTA(tbl_MAATREGELEN_GEIDENTIFICEERD[[#This Row],[Elektriciteit '[kWh']]:[Overige \n'[GJ']]])=0,0,IF(AND(tbl_MAATREGELEN_GEIDENTIFICEERD[[#This Row],[TVT \n'[Jaar']]]<=5,COUNTA(tbl_MAATREGELEN_GEIDENTIFICEERD[[#This Row],[Omschrijving eventuele belemmering]:[Beoogd jaar van uitvoering]])<2),0,1))))","v":""}]
[null,null,null,null,null,null,null,null,null,null,null,null,null,{"$f":"IF(COUNTA(tbl_MAATREGELEN_GEIDENTIFICEERD[[#This Row],[Omschrijving maatregel (kort)]:[Beoogd jaar van uitvoering]])=0,\"\",IF(COUNTA(tbl_MAATREGELEN_GEIDENTIFICEERD[[#This Row],[Omschrijving maatregel (kort)]:[Investering \n'[€']]],tbl_MAATREGELEN_GEIDENTIFICEERD[[#This Row],[CO2-reductie '[ton']]:[TVT \n'[Jaar']]])<>5,0,IF(COUNTA(tbl_MAATREGELEN_GEIDENTIFICEERD[[#This Row],[Elektriciteit '[kWh']]:[Overige \n'[GJ']]])=0,0,IF(AND(tbl_MAATREGELEN_GEIDENTIFICEERD[[#This Row],[TVT \n'[Jaar']]]<=5,COUNTA(tbl_MAATREGELEN_GEIDENTIFICEERD[[#This Row],[Omschrijving eventuele belemmering]:[Beoogd jaar van uitvoering]])<2),0,1))))","v":""}]
[null,null,null,null,null,null,null,null,null,null,null,null,null,{"$f":"IF(COUNTA(tbl_MAATREGELEN_GEIDENTIFICEERD[[#This Row],[Omschrijving maatregel (kort)]:[Beoogd jaar van uitvoering]])=0,\"\",IF(COUNTA(tbl_MAATREGELEN_GEIDENTIFICEERD[[#This Row],[Omschrijving maatregel (kort)]:[Investering \n'[€']]],tbl_MAATREGELEN_GEIDENTIFICEERD[[#This Row],[CO2-reductie '[ton']]:[TVT \n'[Jaar']]])<>5,0,IF(COUNTA(tbl_MAATREGELEN_GEIDENTIFICEERD[[#This Row],[Elektriciteit '[kWh']]:[Overige \n'[GJ']]])=0,0,IF(AND(tbl_MAATREGELEN_GEIDENTIFICEERD[[#This Row],[TVT \n'[Jaar']]]<=5,COUNTA(tbl_MAATREGELEN_GEIDENTIFICEERD[[#This Row],[Omschrijving eventuele belemmering]:[Beoogd jaar van uitvoering]])<2),0,1))))","v":""}]
[null,null,null,null,null,null,null,null,null,null,null,null,null,{"$f":"IF(COUNTA(tbl_MAATREGELEN_GEIDENTIFICEERD[[#This Row],[Omschrijving maatregel (kort)]:[Beoogd jaar van uitvoering]])=0,\"\",IF(COUNTA(tbl_MAATREGELEN_GEIDENTIFICEERD[[#This Row],[Omschrijving maatregel (kort)]:[Investering \n'[€']]],tbl_MAATREGELEN_GEIDENTIFICEERD[[#This Row],[CO2-reductie '[ton']]:[TVT \n'[Jaar']]])<>5,0,IF(COUNTA(tbl_MAATREGELEN_GEIDENTIFICEERD[[#This Row],[Elektriciteit '[kWh']]:[Overige \n'[GJ']]])=0,0,IF(AND(tbl_MAATREGELEN_GEIDENTIFICEERD[[#This Row],[TVT \n'[Jaar']]]<=5,COUNTA(tbl_MAATREGELEN_GEIDENTIFICEERD[[#This Row],[Omschrijving eventuele belemmering]:[Beoogd jaar van uitvoering]])<2),0,1))))","v":""}]
[null,null,null,null,null,null,null,null,null,null,null,null,null,{"$f":"IF(COUNTA(tbl_MAATREGELEN_GEIDENTIFICEERD[[#This Row],[Omschrijving maatregel (kort)]:[Beoogd jaar van uitvoering]])=0,\"\",IF(COUNTA(tbl_MAATREGELEN_GEIDENTIFICEERD[[#This Row],[Omschrijving maatregel (kort)]:[Investering \n'[€']]],tbl_MAATREGELEN_GEIDENTIFICEERD[[#This Row],[CO2-reductie '[ton']]:[TVT \n'[Jaar']]])<>5,0,IF(COUNTA(tbl_MAATREGELEN_GEIDENTIFICEERD[[#This Row],[Elektriciteit '[kWh']]:[Overige \n'[GJ']]])=0,0,IF(AND(tbl_MAATREGELEN_GEIDENTIFICEERD[[#This Row],[TVT \n'[Jaar']]]<=5,COUNTA(tbl_MAATREGELEN_GEIDENTIFICEERD[[#This Row],[Omschrijving eventuele belemmering]:[Beoogd jaar van uitvoering]])<2),0,1))))","v":""}]
[null,null,null,null,null,null,null,null,null,null,null,null,null,{"$f":"IF(COUNTA(tbl_MAATREGELEN_GEIDENTIFICEERD[[#This Row],[Omschrijving maatregel (kort)]:[Beoogd jaar van uitvoering]])=0,\"\",IF(COUNTA(tbl_MAATREGELEN_GEIDENTIFICEERD[[#This Row],[Omschrijving maatregel (kort)]:[Investering \n'[€']]],tbl_MAATREGELEN_GEIDENTIFICEERD[[#This Row],[CO2-reductie '[ton']]:[TVT \n'[Jaar']]])<>5,0,IF(COUNTA(tbl_MAATREGELEN_GEIDENTIFICEERD[[#This Row],[Elektriciteit '[kWh']]:[Overige \n'[GJ']]])=0,0,IF(AND(tbl_MAATREGELEN_GEIDENTIFICEERD[[#This Row],[TVT \n'[Jaar']]]<=5,COUNTA(tbl_MAATREGELEN_GEIDENTIFICEERD[[#This Row],[Omschrijving eventuele belemmering]:[Beoogd jaar van uitvoering]])<2),0,1))))","v":""}]
[null,null,null,null,null,null,null,null,null,null,null,null,null,{"$f":"IF(COUNTA(tbl_MAATREGELEN_GEIDENTIFICEERD[[#This Row],[Omschrijving maatregel (kort)]:[Beoogd jaar van uitvoering]])=0,\"\",IF(COUNTA(tbl_MAATREGELEN_GEIDENTIFICEERD[[#This Row],[Omschrijving maatregel (kort)]:[Investering \n'[€']]],tbl_MAATREGELEN_GEIDENTIFICEERD[[#This Row],[CO2-reductie '[ton']]:[TVT \n'[Jaar']]])<>5,0,IF(COUNTA(tbl_MAATREGELEN_GEIDENTIFICEERD[[#This Row],[Elektriciteit '[kWh']]:[Overige \n'[GJ']]])=0,0,IF(AND(tbl_MAATREGELEN_GEIDENTIFICEERD[[#This Row],[TVT \n'[Jaar']]]<=5,COUNTA(tbl_MAATREGELEN_GEIDENTIFICEERD[[#This Row],[Omschrijving eventuele belemmering]:[Beoogd jaar van uitvoering]])<2),0,1))))","v":""}]
[null,null,null,null,null,null,null,null,null,null,null,null,null,{"$f":"IF(COUNTA(tbl_MAATREGELEN_GEIDENTIFICEERD[[#This Row],[Omschrijving maatregel (kort)]:[Beoogd jaar van uitvoering]])=0,\"\",IF(COUNTA(tbl_MAATREGELEN_GEIDENTIFICEERD[[#This Row],[Omschrijving maatregel (kort)]:[Investering \n'[€']]],tbl_MAATREGELEN_GEIDENTIFICEERD[[#This Row],[CO2-reductie '[ton']]:[TVT \n'[Jaar']]])<>5,0,IF(COUNTA(tbl_MAATREGELEN_GEIDENTIFICEERD[[#This Row],[Elektriciteit '[kWh']]:[Overige \n'[GJ']]])=0,0,IF(AND(tbl_MAATREGELEN_GEIDENTIFICEERD[[#This Row],[TVT \n'[Jaar']]]<=5,COUNTA(tbl_MAATREGELEN_GEIDENTIFICEERD[[#This Row],[Omschrijving eventuele belemmering]:[Beoogd jaar van uitvoering]])<2),0,1))))","v":""}]
[null,null,null,null,null,null,null,null,null,null,null,null,null,{"$f":"IF(COUNTA(tbl_MAATREGELEN_GEIDENTIFICEERD[[#This Row],[Omschrijving maatregel (kort)]:[Beoogd jaar van uitvoering]])=0,\"\",IF(COUNTA(tbl_MAATREGELEN_GEIDENTIFICEERD[[#This Row],[Omschrijving maatregel (kort)]:[Investering \n'[€']]],tbl_MAATREGELEN_GEIDENTIFICEERD[[#This Row],[CO2-reductie '[ton']]:[TVT \n'[Jaar']]])<>5,0,IF(COUNTA(tbl_MAATREGELEN_GEIDENTIFICEERD[[#This Row],[Elektriciteit '[kWh']]:[Overige \n'[GJ']]])=0,0,IF(AND(tbl_MAATREGELEN_GEIDENTIFICEERD[[#This Row],[TVT \n'[Jaar']]]<=5,COUNTA(tbl_MAATREGELEN_GEIDENTIFICEERD[[#This Row],[Omschrijving eventuele belemmering]:[Beoogd jaar van uitvoering]])<2),0,1))))","v":""}]
[null,null,null,null,null,null,null,null,null,null,null,null,null,{"$f":"IF(COUNTA(tbl_MAATREGELEN_GEIDENTIFICEERD[[#This Row],[Omschrijving maatregel (kort)]:[Beoogd jaar van uitvoering]])=0,\"\",IF(COUNTA(tbl_MAATREGELEN_GEIDENTIFICEERD[[#This Row],[Omschrijving maatregel (kort)]:[Investering \n'[€']]],tbl_MAATREGELEN_GEIDENTIFICEERD[[#This Row],[CO2-reductie '[ton']]:[TVT \n'[Jaar']]])<>5,0,IF(COUNTA(tbl_MAATREGELEN_GEIDENTIFICEERD[[#This Row],[Elektriciteit '[kWh']]:[Overige \n'[GJ']]])=0,0,IF(AND(tbl_MAATREGELEN_GEIDENTIFICEERD[[#This Row],[TVT \n'[Jaar']]]<=5,COUNTA(tbl_MAATREGELEN_GEIDENTIFICEERD[[#This Row],[Omschrijving eventuele belemmering]:[Beoogd jaar van uitvoering]])<2),0,1))))","v":""}]
[null,null,null,null,null,null,null,null,null,null,null,null,null,{"$f":"IF(COUNTA(tbl_MAATREGELEN_GEIDENTIFICEERD[[#This Row],[Omschrijving maatregel (kort)]:[Beoogd jaar van uitvoering]])=0,\"\",IF(COUNTA(tbl_MAATREGELEN_GEIDENTIFICEERD[[#This Row],[Omschrijving maatregel (kort)]:[Investering \n'[€']]],tbl_MAATREGELEN_GEIDENTIFICEERD[[#This Row],[CO2-reductie '[ton']]:[TVT \n'[Jaar']]])<>5,0,IF(COUNTA(tbl_MAATREGELEN_GEIDENTIFICEERD[[#This Row],[Elektriciteit '[kWh']]:[Overige \n'[GJ']]])=0,0,IF(AND(tbl_MAATREGELEN_GEIDENTIFICEERD[[#This Row],[TVT \n'[Jaar']]]<=5,COUNTA(tbl_MAATREGELEN_GEIDENTIFICEERD[[#This Row],[Omschrijving eventuele belemmering]:[Beoogd jaar van uitvoering]])<2),0,1))))","v":""}]
[null,null,null,null,null,null,null,null,null,null,null,null,null,{"$f":"IF(COUNTA(tbl_MAATREGELEN_GEIDENTIFICEERD[[#This Row],[Omschrijving maatregel (kort)]:[Beoogd jaar van uitvoering]])=0,\"\",IF(COUNTA(tbl_MAATREGELEN_GEIDENTIFICEERD[[#This Row],[Omschrijving maatregel (kort)]:[Investering \n'[€']]],tbl_MAATREGELEN_GEIDENTIFICEERD[[#This Row],[CO2-reductie '[ton']]:[TVT \n'[Jaar']]])<>5,0,IF(COUNTA(tbl_MAATREGELEN_GEIDENTIFICEERD[[#This Row],[Elektriciteit '[kWh']]:[Overige \n'[GJ']]])=0,0,IF(AND(tbl_MAATREGELEN_GEIDENTIFICEERD[[#This Row],[TVT \n'[Jaar']]]<=5,COUNTA(tbl_MAATREGELEN_GEIDENTIFICEERD[[#This Row],[Omschrijving eventuele belemmering]:[Beoogd jaar van uitvoering]])<2),0,1))))","v":""}]
[null,null,null,null,null,null,null,null,null,null,null,null,null,{"$f":"IF(COUNTA(tbl_MAATREGELEN_GEIDENTIFICEERD[[#This Row],[Omschrijving maatregel (kort)]:[Beoogd jaar van uitvoering]])=0,\"\",IF(COUNTA(tbl_MAATREGELEN_GEIDENTIFICEERD[[#This Row],[Omschrijving maatregel (kort)]:[Investering \n'[€']]],tbl_MAATREGELEN_GEIDENTIFICEERD[[#This Row],[CO2-reductie '[ton']]:[TVT \n'[Jaar']]])<>5,0,IF(COUNTA(tbl_MAATREGELEN_GEIDENTIFICEERD[[#This Row],[Elektriciteit '[kWh']]:[Overige \n'[GJ']]])=0,0,IF(AND(tbl_MAATREGELEN_GEIDENTIFICEERD[[#This Row],[TVT \n'[Jaar']]]<=5,COUNTA(tbl_MAATREGELEN_GEIDENTIFICEERD[[#This Row],[Omschrijving eventuele belemmering]:[Beoogd jaar van uitvoering]])<2),0,1))))","v":""}]
[null,null,null,null,null,null,null,null,null,null,null,null,null,{"$f":"IF(COUNTA(tbl_MAATREGELEN_GEIDENTIFICEERD[[#This Row],[Omschrijving maatregel (kort)]:[Beoogd jaar van uitvoering]])=0,\"\",IF(COUNTA(tbl_MAATREGELEN_GEIDENTIFICEERD[[#This Row],[Omschrijving maatregel (kort)]:[Investering \n'[€']]],tbl_MAATREGELEN_GEIDENTIFICEERD[[#This Row],[CO2-reductie '[ton']]:[TVT \n'[Jaar']]])<>5,0,IF(COUNTA(tbl_MAATREGELEN_GEIDENTIFICEERD[[#This Row],[Elektriciteit '[kWh']]:[Overige \n'[GJ']]])=0,0,IF(AND(tbl_MAATREGELEN_GEIDENTIFICEERD[[#This Row],[TVT \n'[Jaar']]]<=5,COUNTA(tbl_MAATREGELEN_GEIDENTIFICEERD[[#This Row],[Omschrijving eventuele belemmering]:[Beoogd jaar van uitvoering]])<2),0,1))))","v":""}]
[null,null,null,null,null,null,null,null,null,null,null,null,null,{"$f":"IF(COUNTA(tbl_MAATREGELEN_GEIDENTIFICEERD[[#This Row],[Omschrijving maatregel (kort)]:[Beoogd jaar van uitvoering]])=0,\"\",IF(COUNTA(tbl_MAATREGELEN_GEIDENTIFICEERD[[#This Row],[Omschrijving maatregel (kort)]:[Investering \n'[€']]],tbl_MAATREGELEN_GEIDENTIFICEERD[[#This Row],[CO2-reductie '[ton']]:[TVT \n'[Jaar']]])<>5,0,IF(COUNTA(tbl_MAATREGELEN_GEIDENTIFICEERD[[#This Row],[Elektriciteit '[kWh']]:[Overige \n'[GJ']]])=0,0,IF(AND(tbl_MAATREGELEN_GEIDENTIFICEERD[[#This Row],[TVT \n'[Jaar']]]<=5,COUNTA(tbl_MAATREGELEN_GEIDENTIFICEERD[[#This Row],[Omschrijving eventuele belemmering]:[Beoogd jaar van uitvoering]])<2),0,1))))","v":""}]
[null,null,null,null,null,null,null,null,null,null,null,null,null,{"$f":"IF(COUNTA(tbl_MAATREGELEN_GEIDENTIFICEERD[[#This Row],[Omschrijving maatregel (kort)]:[Beoogd jaar van uitvoering]])=0,\"\",IF(COUNTA(tbl_MAATREGELEN_GEIDENTIFICEERD[[#This Row],[Omschrijving maatregel (kort)]:[Investering \n'[€']]],tbl_MAATREGELEN_GEIDENTIFICEERD[[#This Row],[CO2-reductie '[ton']]:[TVT \n'[Jaar']]])<>5,0,IF(COUNTA(tbl_MAATREGELEN_GEIDENTIFICEERD[[#This Row],[Elektriciteit '[kWh']]:[Overige \n'[GJ']]])=0,0,IF(AND(tbl_MAATREGELEN_GEIDENTIFICEERD[[#This Row],[TVT \n'[Jaar']]]<=5,COUNTA(tbl_MAATREGELEN_GEIDENTIFICEERD[[#This Row],[Omschrijving eventuele belemmering]:[Beoogd jaar van uitvoering]])<2),0,1))))","v":""}]
[null,null,null,null,null,null,null,null,null,null,null,null,null,{"$f":"IF(COUNTA(tbl_MAATREGELEN_GEIDENTIFICEERD[[#This Row],[Omschrijving maatregel (kort)]:[Beoogd jaar van uitvoering]])=0,\"\",IF(COUNTA(tbl_MAATREGELEN_GEIDENTIFICEERD[[#This Row],[Omschrijving maatregel (kort)]:[Investering \n'[€']]],tbl_MAATREGELEN_GEIDENTIFICEERD[[#This Row],[CO2-reductie '[ton']]:[TVT \n'[Jaar']]])<>5,0,IF(COUNTA(tbl_MAATREGELEN_GEIDENTIFICEERD[[#This Row],[Elektriciteit '[kWh']]:[Overige \n'[GJ']]])=0,0,IF(AND(tbl_MAATREGELEN_GEIDENTIFICEERD[[#This Row],[TVT \n'[Jaar']]]<=5,COUNTA(tbl_MAATREGELEN_GEIDENTIFICEERD[[#This Row],[Omschrijving eventuele belemmering]:[Beoogd jaar van uitvoering]])<2),0,1))))","v":""}]
[null,null,null,null,null,null,null,null,null,null,null,null,null,{"$f":"IF(COUNTA(tbl_MAATREGELEN_GEIDENTIFICEERD[[#This Row],[Omschrijving maatregel (kort)]:[Beoogd jaar van uitvoering]])=0,\"\",IF(COUNTA(tbl_MAATREGELEN_GEIDENTIFICEERD[[#This Row],[Omschrijving maatregel (kort)]:[Investering \n'[€']]],tbl_MAATREGELEN_GEIDENTIFICEERD[[#This Row],[CO2-reductie '[ton']]:[TVT \n'[Jaar']]])<>5,0,IF(COUNTA(tbl_MAATREGELEN_GEIDENTIFICEERD[[#This Row],[Elektriciteit '[kWh']]:[Overige \n'[GJ']]])=0,0,IF(AND(tbl_MAATREGELEN_GEIDENTIFICEERD[[#This Row],[TVT \n'[Jaar']]]<=5,COUNTA(tbl_MAATREGELEN_GEIDENTIFICEERD[[#This Row],[Omschrijving eventuele belemmering]:[Beoogd jaar van uitvoering]])<2),0,1))))","v":""}]
[null,null,null,null,null,null,null,null,null,null,null,null,null,{"$f":"IF(COUNTA(tbl_MAATREGELEN_GEIDENTIFICEERD[[#This Row],[Omschrijving maatregel (kort)]:[Beoogd jaar van uitvoering]])=0,\"\",IF(COUNTA(tbl_MAATREGELEN_GEIDENTIFICEERD[[#This Row],[Omschrijving maatregel (kort)]:[Investering \n'[€']]],tbl_MAATREGELEN_GEIDENTIFICEERD[[#This Row],[CO2-reductie '[ton']]:[TVT \n'[Jaar']]])<>5,0,IF(COUNTA(tbl_MAATREGELEN_GEIDENTIFICEERD[[#This Row],[Elektriciteit '[kWh']]:[Overige \n'[GJ']]])=0,0,IF(AND(tbl_MAATREGELEN_GEIDENTIFICEERD[[#This Row],[TVT \n'[Jaar']]]<=5,COUNTA(tbl_MAATREGELEN_GEIDENTIFICEERD[[#This Row],[Omschrijving eventuele belemmering]:[Beoogd jaar van uitvoering]])<2),0,1))))","v":""}]
[null,null,null,null,null,null,null,null,null,null,null,null,null,{"$f":"IF(COUNTA(tbl_MAATREGELEN_GEIDENTIFICEERD[[#This Row],[Omschrijving maatregel (kort)]:[Beoogd jaar van uitvoering]])=0,\"\",IF(COUNTA(tbl_MAATREGELEN_GEIDENTIFICEERD[[#This Row],[Omschrijving maatregel (kort)]:[Investering \n'[€']]],tbl_MAATREGELEN_GEIDENTIFICEERD[[#This Row],[CO2-reductie '[ton']]:[TVT \n'[Jaar']]])<>5,0,IF(COUNTA(tbl_MAATREGELEN_GEIDENTIFICEERD[[#This Row],[Elektriciteit '[kWh']]:[Overige \n'[GJ']]])=0,0,IF(AND(tbl_MAATREGELEN_GEIDENTIFICEERD[[#This Row],[TVT \n'[Jaar']]]<=5,COUNTA(tbl_MAATREGELEN_GEIDENTIFICEERD[[#This Row],[Omschrijving eventuele belemmering]:[Beoogd jaar van uitvoering]])<2),0,1))))","v":""}]
[null,null,null,null,null,null,null,null,null,null,null,null,null,{"$f":"IF(COUNTA(tbl_MAATREGELEN_GEIDENTIFICEERD[[#This Row],[Omschrijving maatregel (kort)]:[Beoogd jaar van uitvoering]])=0,\"\",IF(COUNTA(tbl_MAATREGELEN_GEIDENTIFICEERD[[#This Row],[Omschrijving maatregel (kort)]:[Investering \n'[€']]],tbl_MAATREGELEN_GEIDENTIFICEERD[[#This Row],[CO2-reductie '[ton']]:[TVT \n'[Jaar']]])<>5,0,IF(COUNTA(tbl_MAATREGELEN_GEIDENTIFICEERD[[#This Row],[Elektriciteit '[kWh']]:[Overige \n'[GJ']]])=0,0,IF(AND(tbl_MAATREGELEN_GEIDENTIFICEERD[[#This Row],[TVT \n'[Jaar']]]<=5,COUNTA(tbl_MAATREGELEN_GEIDENTIFICEERD[[#This Row],[Omschrijving eventuele belemmering]:[Beoogd jaar van uitvoering]])<2),0,1))))","v":""}]

{"sheet":"CSV-bestanden aanmaken","index":3,"n_rows":12,"n_cols":3,"rows_kept":12,"cut":false,"hidden":false,"merged":[[5,2,5,5],[7,2,7,5],[11,2,11,5]]}
[]
[]
[]
[]
[]
[null,null,"Hulpbestand CSV-upload Onderzoeksplicht"]
[]
[null,null,{"$f":"\"Versie \" & LIJSTEN_VERSIE","v":"Versie 1.0.1"}]
[]
[null,null,"CSV-bestanden aanmaken"]
[]
[null,null,"Na het invullen van de werkbladen 'Getroffen maatregelen' en 'Geïdentificeerde maatregelen' drukt u op de onderstaande knop 'CSV-bestanden aanmaken'. De aangemaakte CSV-bestanden kunt u vervolgens indienen in het eLoket om aan de Onderzoeksplicht te voldoen."]

{"sheet":"Lijsten","index":4,"n_rows":65,"n_cols":3,"rows_kept":65,"cut":false,"hidden":true,"merged":[]}
[]
[null,"LIJSTEN_VERSIE","1.0.1"]
[null,"LIJSTEN_ONTWIKKELMODUS","Uit"]
[null,"LIJSTEN_VALIDATIE_MAATREGELEN_GETROFFEN_AKKOORD",{"$f":"IF(COUNTIF(tbl_MAATREGELEN_GETROFFEN[Volledig?],0)>0,FALSE,TRUE)","v":true}]
[null,"LIJSTEN_VALIDATIE_MAATREGELEN_GEIDENTIFICEERD_AKKOORD",{"$f":"IF(COUNTIF(tbl_MAATREGELEN_GEIDENTIFICEERD[Volledig?],0)>0,FALSE,TRUE)","v":true}]
[null,"LIJSTEN_FOUTENAFHANDELING_INGESCHAKELD",true]
[null,"LIJSTEN_STARTBERICHT_TONEN",true]
[null,"LIJSTEN_GESELECTEERD_WERKBOEK"]
[]
[]
[null,"Naam object: \"Handleiding_XML_upload\""]
[]
[null,"LIJSTEN_VALIDATIEBERICHTEN_MAATREGELEN"]
[null,"Validatie_volledig_eerste_kolommen","Er ontbreken gegevens in de eerste vijf kolommen van de maatregelentabel. "]
[null,"Validatie_uitgevoerd","Geef aan of deze maatregel is uitgevoerd."]
[null,"Validatie_geheel_gedeeltelijk","Geef aan of deze maatregel geheel of gedeeltelijk is uitgevoerd."]
[null,"Validatie_niet_uitgevoerd","Geef aan waarom de maatregel niet is uitgevoerd."]
[null,"Validatie_Variant","Geef van elk van de mogelijke varianten aan of deze al dan niet van toepassing is. Ten minste één van de varianten moet van toepassing zijn. \nNB: Selecteer: \"Nee\" bij 'Uitgevoerd*' (en vervolgens \"Niet van toepassing\" bij 'Niet uitgevoerd omdat...') als geen van de varianten van toepassing zijn."]
[null,"Validatie_technische_randvoorwaarden","Geef van beide randvoorwaarden aan of er aan is voldaan of niet. Aan ten minste één van beide randvoorwaarden moet niet zijn voldaan."]
[null,"Validatie_alternatief","Geef een omschrijving van de alternatieve maatregel."]
[]
[null,"Onderstaande helpteksten kunnen worden aangepast en worden zichtbaar in het informatie-dialoogvenster."]
[]
[null,"LIJSTEN_INFO_TAB_START","INTRODUCTIE\n\nDit hulpbestand gebruikt u om de Onderzoeksplicht tabellen ‘Getroffen maatregelen’ en ‘Geïdentificeerde maatregelen’ in te vullen en daarvan CSV-bestanden te maken. Deze CSV-bestanden kunt u uploaden bij uw rapportage in eLoket. \n\nALGEMENE INSTRUCTIES\n\nDoorloop de volgende stappen om de CSV-bestanden aan te maken:\n\n1.\tVul de werkbladen ‘Getroffen maatregelen’ en ‘Geïdentificeerde maatregelen’ volledig in.\n\n2.\tSla het hulpbestand tussentijds op.\n\n3.\tKlik op de knop ‘CSV-bestanden aanmaken’ op werkblad 'CSV-bestanden aanmaken'. U krijgt een terugkoppeling op het scherm zodra de CSV-bestanden zijn aangemaakt. De CSV-bestanden worden automatisch in dezelfde map opgeslagen als waar dit Hulpbestand staat.\n\n4.\tGebruik de aangemaakte CSV-bestanden bij uw rapportage in eLoket. Aan het begin van de rapportage wordt gevraagd om de tabel ‘Getroffenmaatregelen.csv’ en aan het einde van de rapportage wordt gevraagd om de tabel ‘Geïdentificeerde maatregelen.csv’."]
[null,"LIJSTEN_INFO_TAB_MAATREGELEN","INSTRUCTIE\nVul de werkbladen 'Getroffen maatregelen' en 'Geïdentificeerde maatregelen' per rij volledig in.\n\nVul bij ten minste één energiedrager een besparing in.\n\nAls de terugverdientijd (TVT) van een geïdentificeerde maatregel <= 5 jaar, vul dan ook eventuele voorwaardelijke belemmeringen en het beoogde jaar van uitvoering in."]
[null,"LIJSTEN_INFO_TAB_INFO","INFORMATIE\n\nDit Excel-hulpbestand voor de CSV-upload Onderzoeksplicht is door de Rijksdienst voor Ondernemend Nederland (RVO) ontwikkeld. \n\nDit bestand is voorzien van een digitale ondertekening door de Rijksoverheid. Controleer bij het gebruik van dit bestand of deze ondertekening aanwezig is. Gebruik het bestand niet als deze ondertekening ontbreekt. Mogelijk werkt het bestand niet goed meer of bevat het schadelijke inhoud.\n\nDit bestand is getest voor Excel 2022. Eerdere versies van Excel vertonen mogelijk functionele beperkingen. Neem contact op met de helpdesk van RVO.nl als u een foutmelding krijgt: 088 042 42 42.\n\nVrijgavenotities (wijziging ten opzichte van voorgaande versie)\n\nVersie 1.0.0 - Oorspronkelijke versie.\n\nVersie 1.0.1 – Invullen van negatieve getallen is nu mogelijk. Bijvoorbeeld als een besparing op gas leidt tot een verhoging van het elektriciteitsgebruik kun u een negatief getal opnemen onder Elektriciteit."]
[null,"LIJSTEN_INFO_TAB_XML","IINSTRUCTIE\n\nKlik op de knop ’CSV-bestanden aanmaken’ op werkblad ‘CSV-bestanden aanmaken’. Er vind dan eerst een controle plaats op alle ingevoerde gegevens. Als er geen fouten zijn worden de CSV-gegevensbestanden aangemaakt.\n\nDe CSV-gegevensbestanden worden  automatisch in dezelfde map geplaatst en van een unieke naam met voorzien. Nadat de bestand en zijn aangemaakt kunt u ze inzien door er dubbel op te klikken. In veel gevallen zal het bestand dan in Excel zichtbaar zijn. \n\nGebruik de aangemaakte CSV-bestanden bij uw rapportage in eLoket. Aan het begin van de rapportage wordt gevraagd om de tabel ‘Getroffenmaatregelen.csv’ en aan het einde van de rapportage wordt gevraagd om de tabel ‘Geïdentificeerde maatregelen.csv’."]
[null,"LIJSTEN_INFO_TAB_FAQ","VEELGESTELDE VRAGEN\n\n1. Zijn de CSV-gegevensbestanden die door dit Exel-hulpbestand wordt aangemaakt goed vormgegeven zodat het in één keer kan worden ingelezen in eLoket?\nJa, dat is het geval. Mocht u toch problemen ondervinden. Neem dan contact op met de helpdesk van RVO.nl: 088 042 42 42 .\n\n2. Ik krijg een foutmelding die ik niet snap, wat moet ik doen?\nGa eerst naar de werkbladen 'Maatregelen geïdentificeerd' en 'Maatregelen getroffen'. Hier staat bondig beschreven wat de fout is. Raadpleeg vervolgens de handleiding door op het [i]-icoon te klikken. Als het dan nog steeds onduidelijk is raadpleeg dan de helpdesk van RVO.nl.\n\n3. Ik wil mijn CSV-gegevensbestanden wijzigen. Hoe doe ik dat?\nU opent het door u ingevulde en opgeslagen hulpbestand. U past de gegevens die wilt wijzigen aan, u slaat het bestand opnieuw op en u klikt op de knop ‘CSV-bestanden aanmaken’. \n\n4. Kan ik de invoerde gegevens tussentijds controleren?\nKlik op het validatieicoon in de linkerbovenhoek van de tabel om een validatierapport te maken waarin eventuele validatiefouten staan.\n\nLet op: het is mogelijk om handmatig wijzigingen in de CSV-gegevensbestanden aan te brengen. Hierdoor loopt u wel het risico dat het eLoket de bestanden niet kan verwerken omdat het niet langer de juiste structuur heeft. "]
[null,"LIJSTEN_INFO_TAB_TIPS"]
[]
[null,"LIJSTEN_JAAR_VAN_UITVOERING"]
[null,2021]
[null,2022]
[null,2023]
[]
[null,"LIJSTEN_MOMENT_VAN_UITVOEREN"]
[null,"Optimalisatie"]
[null,"Vroegtijdig"]
[null,"Einde levensduur"]
[null,"Uitbreiding"]
[]
[null,"LIJSTEN_CATEGORIE"]
[null,"Aandrijfsysteem"]
[null,"Procesisolatie"]
[null,"Stoom"]
[null,"Procesbaden"]
[null,"Proceswarmte"]
[null,"Proceskoeling"]
[null,"Productkoeling"]
[null,"Hernieuwbaar"]
[null,"Overig"]
[]
[null,"LIJSTEN_BEOOGD_JAAR_VAN_UITVOERING"]
[null,2024]
[null,2025]
[null,2026]
[null,2027]
[null,"na 2027"]
[null,"niet"]
[]
[null,"LIJSTEN_OMSCHRIJVING_EVENTUELE_BELEMMERING"]
[null,"n.v.t."]
[null,"technisch"]
[null,"bedrijfseconomisch"]
[null,"organisatorisch"]

{"sheet":"DB_Tijdelijk","index":5,"n_rows":0,"n_cols":0,"rows_kept":0,"cut":false,"hidden":true,"merged":[]}